fUSD/lending_fUSD_20251225
["ID","MTS","AMOUNT","RATE_DAILY","PERIOD"]
[399808843,1766689847698,-150.0,0.0001642,2]
[399808844,1766689847710,-150.0,0.0001642,2]
[399808845,1766689847720,-150.0,0.0001642,2]
[399808846,1766689847730,-180.03875056,0.0001642,2]
[399808847,1766689847739,-150.0,0.0001642,2]
[399808848,1766689847749,-150.0,0.0001642,2]
[399808849,1766689847759,-150.0,0.0001642,2]
[399808850,1766689847768,-150.0,0.00016427,2]
[399808851,1766689847778,-150.0,0.00016429,2]
[399808852,1766689847788,-150.0,0.00016434,2]
[399808853,1766689847798,-500.0,0.00016437,2]
[399808854,1766689847808,-183.93452706,0.00016437,2]
[399808855,1766689847818,-435.0169277,0.00016437,2]
[399808856,1766689847829,-534.14774107,0.00016437,2]
[399808857,1766689847838,-557.39,0.00016437,2]
[399808858,1766689847848,-1664.65,0.00016437,2]
[399808859,1766689847858,-180.03875056,0.00016437,2]
[399808860,1766689847872,-500.0,0.00016438,2]
[399808861,1766689847882,-500.0,0.00016438,2]
[399808862,1766689847892,-500.0,0.00016438,2]
[399808863,1766689847902,-500.0,0.00016438,2]
[399808864,1766689847912,-500.0,0.00016438,2]
[399808865,1766689847922,-500.0,0.00016438,2]
[399808866,1766689847932,-500.0,0.00016438,2]
[399808867,1766689847941,-500.0,0.00016438,2]
[399808868,1766689847951,-500.0,0.00016438,2]
[399808869,1766689847960,-500.0,0.00016438,2]
[399808870,1766689847970,-500.0,0.00016438,2]
[399808871,1766689847981,-500.0,0.00016438,2]
[399808872,1766689847991,-500.0,0.00016438,2]
[399808873,1766689848001,-500.0,0.00016438,2]
[399808874,1766689848011,-500.0,0.00016438,2]
[399808875,1766689848020,-414.3177764,0.00016438,2]
[399808876,1766689848033,-500.0,0.00016438,2]
[399808877,1766689848042,-500.0,0.00016438,2]
[399808878,1766689848053,-500.0,0.00016438,2]
[399808879,1766689848063,-500.0,0.00016438,2]
[399808880,1766689848074,-500.0,0.00016438,2]
[399808881,1766689848084,-500.0,0.00016438,2]
[399808882,1766689848094,-500.0,0.00016438,2]
[399808883,1766689848105,-500.0,0.00016438,2]
[399808884,1766689848115,-500.0,0.00016438,2]
[399808885,1766689848125,-500.0,0.00016438,2]
[399808886,1766689848135,-500.0,0.00016438,2]
[399808887,1766689848144,-500.0,0.00016438,2]
[399808888,1766689848154,-500.0,0.00016438,2]
[399808889,1766689848166,-500.0,0.00016438,2]
[399808890,1766689848176,-500.0,0.00016438,2]
[399808891,1766689848187,-500.0,0.00016438,2]
[399808892,1766689848196,-500.0,0.00016438,2]
[399808893,1766689848206,-500.0,0.00016438,2]
[399808894,1766689848216,-500.0,0.00016438,2]
[399808895,1766689848226,-500.0,0.00016438,2]
[399808896,1766689848236,-500.0,0.00016438,2]
[399808897,1766689848247,-500.0,0.00016438,2]
[399808898,1766689848256,-500.0,0.00016438,2]
[399808899,1766689848268,-500.0,0.00016438,2]
[399808900,1766689848279,-500.0,0.00016438,2]
[399808901,1766689848289,-728.09816713,0.00016438,2]
[399808902,1766689848299,-728.09816713,0.00016438,2]
[399808903,1766689848310,-728.09816713,0.00016438,2]
[399808904,1766689848321,-728.09816713,0.00016438,2]
[399808905,1766689848331,-728.09816713,0.00016438,2]
[399808906,1766689848341,-728.09816713,0.00016438,2]
[399808907,1766689848350,-728.09816713,0.00016438,2]
[399808908,1766689848360,-728.09816713,0.00016438,2]
[399808909,1766689848371,-728.09816713,0.00016438,2]
[399808910,1766689848381,-728.09816713,0.00016438,2]
[399808911,1766689848391,-728.09816713,0.00016438,2]
[399808912,1766689848401,-728.09816713,0.00016438,2]
[399808913,1766689848411,-728.09816713,0.00016438,2]
[399808914,1766689848421,-728.09816713,0.00016438,2]
[399808915,1766689848431,-728.09816713,0.00016438,2]
[399808916,1766689848441,-728.09816713,0.00016438,2]
[399808917,1766689848451,-728.09816713,0.00016438,2]
[399808918,1766689848462,-728.09816713,0.00016438,2]
[399808919,1766689848472,-728.09816713,0.00016438,2]
[399808920,1766689848483,-728.09816713,0.00016438,2]
[399808921,1766689848494,-728.09816713,0.00016438,2]
[399808922,1766689848504,-728.09816713,0.00016438,2]
[399808923,1766689848515,-728.09816713,0.00016438,2]
[399808924,1766689848525,-728.09816713,0.00016438,2]
[399808925,1766689848536,-728.09816713,0.00016438,2]
[399808926,1766689848549,-728.09816713,0.00016438,2]
[399808927,1766689848561,-728.09816713,0.00016438,2]
[399808928,1766689848647,-728.09816713,0.00016438,2]
[399808929,1766689848659,-728.09816713,0.00016438,2]
[399808930,1766689848669,-728.09816713,0.00016438,2]
[399808931,1766689848679,-728.09816713,0.00016438,2]
[399808932,1766689848689,-728.09816713,0.00016438,2]
[399808933,1766689848698,-728.09816713,0.00016438,2]
[399808934,1766689848709,-728.09816713,0.00016438,2]
[399808935,1766689848718,-728.09816713,0.00016438,2]
[399808936,1766689848728,-728.09816713,0.00016438,2]
[399808937,1766689848738,-728.09816713,0.00016438,2]
[399808938,1766689848748,-728.09816713,0.00016438,2]
[399808939,1766689848758,-728.09816713,0.00016438,2]
[399808940,1766689848768,-728.09816713,0.00016438,2]
[399808941,1766689848778,-728.09816713,0.00016438,2]
[399808942,1766689848788,-728.09816713,0.00016438,2]
[399808943,1766689848799,-728.09816714,0.00016438,2]
[399808944,1766689848809,-728.09816714,0.00016438,2]
[399808945,1766689848819,-728.09816714,0.00016438,2]
[399808946,1766689848829,-728.09816714,0.00016438,2]
[399808947,1766689848838,-728.09816714,0.00016438,2]
[399808948,1766689848848,-728.09816714,0.00016438,2]
[399808949,1766689848857,-728.09816714,0.00016438,2]
[399808950,1766689848867,-728.09816714,0.00016438,2]
[399808951,1766689848877,-809.0,0.00016438,2]
[399808952,1766689848887,-716.0,0.00016438,2]
[399808953,1766689848897,-800.0,0.00016438,2]
[399808954,1766689848907,-150.0,0.00016444,2]
[399808955,1766689848916,-150.0,0.00016446,2]
[399808956,1766689848926,-150.0,0.0001645,2]
[399808957,1766689848936,-150.0,0.0001645,2]
[399808958,1766689848946,-150.0,0.00016454,2]
[399808959,1766689848956,-180.03875056,0.00016454,2]
[399808960,1766689848966,-150.0,0.00016457,2]
[399808961,1766689848977,-150.0,0.00016465,2]
[399808962,1766689848988,-500.0,0.00016465,2]
[399808963,1766689848998,-150.0,0.00016467,2]
[399808964,1766689849007,-180.03875056,0.00016472,2]
[399808965,1766689849016,-150.0,0.00016475,2]
[399808966,1766689849025,-1055.0,0.00016477,2]
[399808967,1766689849040,-150.0,0.0001648,2]
[399808968,1766689849050,-150.0,0.0001648,2]
[399808969,1766689849059,-150.0,0.00016484,2]
[399808970,1766689849070,-14081.0272107,0.00016484,2]
[399808971,1766689849080,-150.0,0.00016485,2]
[399808972,1766689849090,-180.03875056,0.00016489,2]
[399808973,1766689849099,-1055.0,0.0001649,2]
[399808974,1766689849111,-150.0,0.00016491,2]
[399808975,1766689849121,-500.0,0.00016493,2]
[399808976,1766689849131,-150.0,0.00016495,2]
[399808977,1766689849141,-9574.85791024,0.00016496,2]
[399808978,1766689849149,-1055.0,0.00016501,2]
[399808979,1766689849159,-150.0,0.00016504,2]
[399808980,1766689849169,-180.03875056,0.00016506,2]
[399808981,1766689849179,-150.0,0.00016509,2]
[399808982,1766689849189,-150.0,0.00016513,2]
[399808983,1766689849199,-150.0,0.00016514,2]
[399808984,1766689849209,-150.0,0.00016516,2]
[399808985,1766689849220,-150.0,0.00016516,2]
[399808986,1766689849230,-500.0,0.0001652,2]
[399808987,1766689849239,-150.0,0.00016523,2]
[399808988,1766689849249,-180.03875056,0.00016523,2]
[399808989,1766689849259,-150.0,0.00016533,2]
[399808990,1766689849268,-150.0,0.00016536,2]
[399808991,1766689849278,-150.0,0.00016539,2]
[399808992,1766689849287,-150.0,0.00016539,2]
[399808993,1766689849299,-180.03875056,0.0001654,2]
[399808994,1766689849310,-150.0,0.00016541,2]
[399808995,1766689849320,-1055.0,0.00016541,2]
[399808996,1766689849330,-150.0,0.00016542,2]
[399808997,1766689849340,-500.0,0.00016548,2]
[399808998,1766689849350,-1055.0,0.00016552,2]
[399808999,1766689849360,-150.0,0.00016553,2]
[399809000,1766689849370,-150.0,0.00016557,2]
[399809001,1766689849379,-180.03875056,0.00016557,2]
[399809002,1766689849389,-150.0,0.00016562,2]
[399809003,1766689849399,-150.0,0.00016562,2]
[399809004,1766689849409,-150.0,0.00016562,2]
[399809005,1766689849419,-150.0,0.00016562,2]
[399809006,1766689849429,-41325.20904142,0.00016566,2]
[399809007,1766689849438,-583.07830005,0.00016566,2]
[399809008,1766689849448,-150.0,0.00016569,2]
[399809009,1766689849458,-150.0,0.00016569,2]
[399809010,1766689849467,-180.03875056,0.00016575,2]
[399809011,1766689849477,-500.0,0.00016575,2]
[399809012,1766689849486,-150.0,0.00016577,2]
[399809013,1766689849496,-150.0,0.00016581,2]
[399809014,1766689849505,-3459.0,0.00016586,2]
[399809015,1766689849515,-1610.0,0.00016586,2]
[399809016,1766689849525,-432.0,0.00016586,2]
[399809017,1766689849534,-1271.446,0.00016586,2]
[399809018,1766689849544,-919.814,0.00016586,2]
[399809019,1766689849553,-1211.891,0.00016586,2]
[399809020,1766689849563,-2430.0,0.00016586,2]
[399809021,1766689849573,-576.965,0.00016586,2]
[399809022,1766689849582,-4807.0,0.00016586,2]
[399809023,1766689849592,-150.0,0.00016589,2]
[399809024,1766689849602,-180.03875056,0.00016592,2]
[399809025,1766689849612,-1192.0,0.00016592,2]
[399809026,1766689849621,-150.0,0.00016596,2]
[399809027,1766689849631,-150.0,0.00016597,2]
[399809028,1766689849641,-150.0,0.00016599,2]
[399809029,1766689849651,-150.0,0.000166,2]
[399809030,1766689849661,-500.0,0.00016602,2]
[399809031,1766689849670,-180.03875056,0.00016609,2]
[399809032,1766689849680,-150.0,0.00016609,2]
[399809033,1766689849690,-150.0,0.00016618,2]
[399809034,1766689849699,-150.0,0.0001662,2]
[399809035,1766689849709,-150.0,0.00016624,2]
[399809036,1766689849719,-1848.0,0.00016625,2]
[399809037,1766689849729,-150.0,0.00016625,2]
[399809038,1766689849739,-180.03875056,0.00016626,2]
[399809039,1766689849748,-150.0,0.00016629,2]
[399809040,1766689849758,-150.0,0.00016629,2]
[399809041,1766689849767,-500.0,0.0001663,2]
[399809042,1766689849777,-150.0,0.00016632,2]
[399809043,1766689849787,-150.0,0.00016638,2]
[399809044,1766689849797,-150.0,0.00016639,2]
[399809045,1766689849807,-180.03875056,0.00016643,2]
[399809046,1766689849816,-150.0,0.00016647,2]
[399809047,1766689849826,-150.0,0.00016652,2]
[399809048,1766689849837,-150.0,0.00016656,2]
[399809049,1766689849846,-500.0,0.00016657,2]
[399809050,1766689849856,-150.0,0.00016658,2]
[399809051,1766689849865,-150.0,0.00016658,2]
[399809052,1766689849874,-150.0,0.00016659,2]
[399809053,1766689849883,-10795.96324327,0.0001666,2]
[399809054,1766689849892,-180.03875056,0.0001666,2]
[399809055,1766689849902,-150.0,0.00016661,2]
[399809056,1766689849911,-150.0,0.00016677,2]
[399809057,1766689849921,-180.03875056,0.00016677,2]
[399809058,1766689849931,-150.0,0.00016679,2]
[399809059,1766689849941,-150.0,0.0001668,2]
[399809060,1766689849951,-218.80351721,0.00016685,2]
[399809061,1766689849961,-150.0,0.00016688,2]
[399809062,1766689849971,-180.03875056,0.00016695,2]
[399809063,1766689849980,-150.0,0.00016697,2]
[399809064,1766689849989,-595.37131296,0.00016697,2]
[399809065,1766689849999,-150.0,0.00016697,2]
[399809066,1766689850009,-150.0,0.000167,2]
[399809067,1766689850019,-150.0,0.00016703,2]
[399809068,1766689850029,-150.0,0.00016703,2]
[399809069,1766689850041,-150.0,0.00016703,2]
[399809070,1766689850051,-1055.0,0.00016706,2]
[399809071,1766689850061,-150.0,0.00016708,2]
[399809072,1766689850071,-180.03875056,0.00016712,2]
[399809073,1766689850082,-164.63,0.00016712,2]
[399809074,1766689850092,-150.0,0.00016716,2]
[399809075,1766689850101,-150.0,0.00016718,2]
[399809076,1766689850111,-150.0,0.00016718,2]
[399809077,1766689850123,-150.0,0.0001672,2]
[399809078,1766689850133,-150.0,0.00016725,2]
[399809079,1766689850143,-180.03875056,0.00016729,2]
[399809080,1766689850153,-1000.0,0.00016731,2]
[399809081,1766689850163,-308.61264672,0.00016731,2]
[399809082,1766689850172,-500.0,0.00016731,2]
[399809083,1766689850183,-500.0,0.00016731,2]
[399809084,1766689850194,-500.0,0.00016731,2]
[399809085,1766689850204,-598.60555363,0.00016731,2]
[399809086,1766689850213,-500.0,0.00016731,2]
[399809087,1766689850223,-559.28446362,0.00016731,2]
[399809088,1766689850233,-500.0,0.00016731,2]
[399809089,1766689850243,-500.0,0.00016731,2]
[399809090,1766689850252,-207.3850141,0.00016731,2]
[399809091,1766689850263,-500.0,0.00016731,2]
[399809092,1766689850273,-500.0,0.00016731,2]
[399809093,1766689850283,-500.0,0.00016731,2]
[399809094,1766689850293,-500.0,0.00016731,2]
[399809095,1766689850303,-500.0,0.00016731,2]
[399809096,1766689850312,-500.0,0.00016731,2]
[399809097,1766689850322,-500.0,0.00016731,2]
[399809098,1766689850332,-500.0,0.00016731,2]
[399809099,1766689850342,-150.0,0.00016733,2]
[399809100,1766689850352,-1848.0,0.00016735,2]
[399809101,1766689850362,-150.0,0.00016735,2]
[399809102,1766689850371,-150.0,0.00016736,2]
[399809103,1766689850381,-1000.0,0.00016739,2]
[399809104,1766689850391,-150.0,0.00016741,2]
[399809105,1766689850400,-180.03875056,0.00016746,2]
[399809106,1766689850411,-150.0,0.00016748,2]
[399809107,1766689850421,-300.0,0.00016749,2]
[399809108,1766689850430,-150.0,0.0001675,2]
[399809109,1766689850439,-1000.0,0.00016754,2]
[399809110,1766689850449,-150.0,0.00016755,2]
[399809111,1766689850459,-150.0,0.0001676,2]
[399809112,1766689850468,-150.0,0.00016761,2]
[399809113,1766689850478,-180.03875056,0.00016763,2]
[399809114,1766689850487,-150.0,0.00016764,2]
[399809115,1766689850497,-150.0,0.00016765,2]
[399809116,1766689850507,-150.0,0.00016769,2]
[399809117,1766689850517,-150.0,0.00016774,2]
[399809118,1766689850527,-150.0,0.00016774,2]
[399809119,1766689850536,-1178.96939853,0.00016775,2]
[399809120,1766689850546,-300.0,0.00016776,2]
[399809121,1766689850555,-150.0,0.00016778,2]
[399809122,1766689850564,-180.03875056,0.0001678,2]
[399809123,1766689850574,-150.0,0.00016782,2]
[399809124,1766689850584,-300.0,0.00016782,2]
[399809125,1766689850593,-300.0,0.00016789,2]
[399809126,1766689850603,-150.0,0.00016789,2]
[399809127,1766689850613,-150.0,0.00016791,2]
[399809128,1766689850623,-150.0,0.00016793,2]
[399809129,1766689850633,-180.03875056,0.00016798,2]
[399809130,1766689850642,-150.0,0.00016798,2]
[399809131,1766689850653,-1000.0,0.00016799,2]
[399809132,1766689850663,-150.0,0.00016802,2]
[399809133,1766689850673,-150.0,0.00016806,2]
[399809134,1766689850682,-150.0,0.00016807,2]
[399809135,1766689850692,-150.0,0.00016807,2]
[399809136,1766689850702,-150.0,0.00016813,2]
[399809137,1766689850712,-180.03875056,0.00016815,2]
[399809138,1766689850722,-160.79787959,0.00016819,2]
[399809139,1766689850732,-150.0,0.00016819,2]
[399809140,1766689850742,-1192.0,0.0001682,2]
[399809141,1766689850752,-300.0,0.00016821,2]
[399809142,1766689850762,-150.0,0.00016823,2]
[399809143,1766689850772,-188.55950753,0.00016824,2]
[399809144,1766689850781,-150.0,0.00016828,2]
[399809145,1766689850791,-200.0,0.0001683,2]
[399809146,1766689850801,-200.0,0.0001683,2]
[399809147,1766689850811,-186.305,0.0001683,2]
[399809148,1766689850821,-212.539,0.0001683,2]
[399809149,1766689850830,-256.083,0.0001683,2]
[399809150,1766689850839,-170.0,0.0001683,2]
[399809151,1766689850849,-156.406,0.0001683,2]
[399809152,1766689850858,-250.0,0.0001683,2]
[399809153,1766689850869,-243.792,0.0001683,2]
[399809154,1766689850878,-150.0,0.0001683,2]
[399809155,1766689850888,-150.0,0.0001683,2]
[399809156,1766689850897,-150.0,0.0001683,2]
[399809157,1766689850907,-150.0,0.0001683,2]
[399809158,1766689850917,-1327.0,0.0001683,2]
[399809159,1766689850927,-618.307,0.0001683,2]
[399809160,1766689850937,-926.45060488,0.0001683,2]
[399809161,1766689850947,-300.0,0.00016831,2]
[399809162,1766689850956,-150.0,0.00016832,2]
[399809163,1766689850966,-180.03875056,0.00016832,2]
[399809164,1766689850976,-150.0,0.00016837,2]
[399809165,1766689850986,-1178.96939851,0.00016838,2]
[399809166,1766689850996,-1000.0,0.00016838,2]
[399809167,1766689851006,-1000.0,0.00016838,2]
[399809168,1766689851016,-1000.0,0.00016839,2]
[399809169,1766689851026,-150.0,0.00016842,2]
[399809170,1766689851037,-150.0,0.00016843,2]
[399809171,1766689851049,-150.0,0.00016845,2]
[399809172,1766689851059,-150.0,0.00016845,2]
[399809173,1766689851070,-150.0,0.00016845,2]
[399809174,1766689851080,-150.0,0.00016847,2]
[399809175,1766689851092,-180.03875056,0.00016849,2]
[399809176,1766689851102,-150.0,0.00016851,2]
[399809177,1766689851112,-1000.0,0.00016861,2]
[399809178,1766689851123,-200.0,0.00016863,2]
[399809179,1766689851133,-200.0,0.00016864,2]
[399809180,1766689851143,-150.0,0.00016864,2]
[399809181,1766689851153,-200.0,0.00016864,2]
[399809182,1766689851165,-200.0,0.00016864,2]
[399809183,1766689851175,-200.0,0.00016864,2]
[399809184,1766689851185,-180.03875056,0.00016866,2]
[399809185,1766689851195,-150.0,0.00016867,2]
[399809186,1766689851205,-150.0,0.00016867,2]
[399809187,1766689851215,-150.0,0.0001687,2]
[399809188,1766689851225,-150.0,0.00016873,2]
[399809189,1766689851235,-25000.0,0.00016874,3]
[399809190,1766689851245,-150.0,0.00016875,2]
[399809191,1766689851255,-150.0,0.00016875,2]
[399809192,1766689851267,-150.0,0.00016878,2]
[399809193,1766689851277,-150.0,0.00016879,2]
[399809194,1766689851287,-500.0,0.00016882,2]
[399809195,1766689851297,-25000.0,0.00016882,3]
[399809196,1766689851307,-180.03875056,0.00016883,2]
[399809197,1766689851318,-150.0,0.00016884,2]
[399809198,1766689851328,-1040.65765088,0.00016884,2]
[399809199,1766689851339,-150.0,0.00016884,2]
[399809200,1766689851349,-1000.0,0.00016885,2]
[399809201,1766689851358,-150.0,0.00016886,2]
[399809202,1766689851369,-150.0,0.0001689,2]
[399809203,1766689851379,-25000.0,0.00016891,3]
[399809204,1766689851390,-150.0,0.00016892,2]
[399809205,1766689851400,-150.0,0.00016897,2]
[399809206,1766689851410,-150.0,0.00016897,2]
[399809207,1766689851420,-150.0,0.00016897,2]
[399809208,1766689851430,-500.0,0.00016899,2]
[399809209,1766689851441,-557.39,0.00016899,2]
[399809210,1766689851451,-1664.65,0.00016899,2]
[399809211,1766689851461,-1065.1191064,0.000169,2]
[399809212,1766689851472,-25000.0,0.000169,3]
[399809213,1766689851482,-1926.43051864,0.000169,3]
[399809214,1766689851492,-14081.0272107,0.000169,2]
[399809215,1766689851502,-9574.85791024,0.000169,2]
[399809216,1766689851512,-170.28248417,0.000169,2]
[399809217,1766689851522,-351.42531684,0.000169,2]
[399809218,1766689851532,-17404.91153984,0.000169,2]
[399809219,1766689851543,-4210.01963503,0.000169,2]
[399809220,1766689851553,-1000.0,0.000169,2]
[399809221,1766689851563,-1178.96939851,0.000169,2]
[399809222,1766689851573,-180.03875056,0.00016901,2]
[399809223,1766689851583,-150.0,0.00016903,2]
[399809224,1766689851593,-150.0,0.00016904,2]
[399809225,1766689851603,-150.0,0.00016908,2]
[399809226,1766689851613,-150.0,0.00016909,2]
[399809227,1766689851624,-150.0,0.00016914,2]
[399809228,1766689851633,-150.0,0.00016916,2]
[399809229,1766689851643,-180.03875056,0.00016918,2]
[399809230,1766689851653,-150.0,0.00016922,2]
[399809231,1766689851663,-150.0,0.00016925,2]
[399809232,1766689851673,-1000.0,0.00016926,2]
[399809233,1766689851683,-150.0,0.00016927,2]
[399809234,1766689851693,-150.0,0.00016928,2]
[399809235,1766689851703,-150.0,0.00016929,2]
[399809236,1766689851712,-150.0,0.00016931,2]
[399809237,1766689851723,-1000.0,0.00016934,2]
[399809238,1766689851733,-180.03875056,0.00016935,2]
[399809239,1766689851744,-300.0,0.00016935,2]
[399809240,1766689851754,-300.0,0.00016936,2]
[399809241,1766689851764,-150.0,0.00016939,2]
[399809242,1766689851775,-150.0,0.00016942,2]
[399809243,1766689851784,-150.0,0.00016945,2]
[399809244,1766689851795,-150.0,0.00016948,2]
[399809245,1766689851805,-1192.0,0.00016948,2]
[399809246,1766689851814,-150.0,0.0001695,2]
[399809247,1766689851824,-300.0,0.00016951,2]
[399809248,1766689851834,-150.0,0.00016951,2]
[399809249,1766689851844,-180.03875056,0.00016952,2]
[399809250,1766689851853,-150.0,0.00016957,2]
[399809251,1766689851863,-150.0,0.00016958,2]
[399809252,1766689851873,-3899.0,0.00016959,2]
[399809253,1766689851883,-150.0,0.00016961,2]
[399809254,1766689851893,-1000.0,0.00016961,2]
[399809255,1766689851902,-150.0,0.00016966,2]
[399809256,1766689851912,-150.0,0.00016967,2]
[399809257,1766689851922,-180.03875056,0.00016969,2]
[399809258,1766689851932,-500.0,0.0001697,2]
[399809259,1766689851943,-500.0,0.0001697,2]
[399809260,1766689851958,-500.0,0.0001697,2]
[399809261,1766689851969,-800.78551976,0.0001697,2]
[399809262,1766689851991,-1000.0,0.0001697,2]
[399809263,1766689852003,-500.0,0.00016973,2]
[399809264,1766689852013,-150.0,0.00016973,2]
[399809265,1766689852023,-2000.0,0.00016983,2]
[399809266,1766689852033,-2000.0,0.00016983,2]
[399809267,1766689852043,-2000.0,0.00016983,2]
[399809268,1766689852057,-2000.0,0.00016983,2]
[399809269,1766689852067,-2000.0,0.00016983,2]
[399809270,1766689852077,-2000.0,0.00016983,2]
[399809271,1766689852087,-1000.0,0.00016983,2]
[399809272,1766689852099,-1000.0,0.00016983,2]
[399809273,1766689852109,-1000.0,0.00016983,2]
[399809274,1766689852119,-1000.0,0.00016983,2]
[399809275,1766689852131,-505.30351694,0.00016983,2]
[399809276,1766689852142,-1000.0,0.00016985,2]
[399809277,1766689852152,-1000.0,0.00016985,2]
[399809278,1766689852163,-1000.0,0.00016985,2]
[399809279,1766689852173,-916.272,0.00016985,2]
[399809280,1766689852183,-1000.0,0.00016985,2]
[399809281,1766689852193,-1000.0,0.00016985,2]
[399809282,1766689852203,-1000.0,0.00016985,2]
[399809283,1766689852213,-347.511,0.00016985,2]
[399809284,1766689852223,-1000.0,0.00016986,2]
[399809285,1766689852234,-1000.0,0.00016986,2]
[399809286,1766689852244,-1000.0,0.00016986,2]
[399809287,1766689852254,-1000.0,0.00016986,2]
[399809288,1766689852264,-1000.0,0.00016986,2]
[399809289,1766689852273,-1000.0,0.00016986,2]
[399809290,1766689852284,-1000.0,0.00016986,2]
[399809291,1766689852296,-1000.0,0.00016986,2]
[399809292,1766689852314,-1000.0,0.00016986,2]
[399809293,1766689852324,-1000.0,0.00016986,2]
[399809294,1766689852334,-300.0,0.00016986,2]
[399809295,1766689852344,-52287.96,0.00016986,2]
[399809296,1766689852354,-254.60367392,0.00016986,2]
[399809297,1766689852365,-199.93327437,0.00016986,2]
[399809298,1766689852375,-159.80056787,0.00016986,2]
[399809299,1766689852385,-221.88950026,0.00016986,2]
[399809300,1766689852395,-298.55759469,0.00016986,2]
[399809301,1766689852405,-250.03401256,0.00016986,2]
[399809302,1766689852415,-199.77046781,0.00016986,2]
[399809303,1766689852426,-180.03875056,0.00016986,2]
[399809304,1766689852436,-171.10828189,0.00016986,2]
[399809305,1766689852446,-284.4666085,0.00016986,2]
[399809306,1766689852456,-176.41435158,0.00016986,2]
[399809307,1766689852466,-245.69368063,0.00016986,2]
[399809308,1766689852476,-150.0,0.00016989,2]
[399809309,1766689852487,-2046.89296055,0.0001699,2]
[399809310,1766689852498,-2046.89296055,0.0001699,2]
[399809311,1766689852508,-300.0,0.00016993,2]
[399809312,1766689852519,-151.0,0.00016997,2]
[399809313,1766689852529,-1060.87558749,0.00016999,5]
[399809314,1766689852539,-150.0,0.00016999,2]
[399809315,1766689852550,-300.0,0.00016999,2]
[399809316,1766689852560,-300.0,0.00016999,2]
[399809317,1766689852571,-3746.7455437,0.00016999,2]
[399809318,1766689852581,-300.0,0.00016999,2]
[399809319,1766689852591,-666.0,0.00016999,2]
[399809320,1766689852601,-432.16466812,0.00016999,2]
[399809321,1766689852611,-2324.6127464,0.00016999,2]
[399809322,1766689852621,-300.0,0.00016999,2]
[399809323,1766689852631,-666.0,0.00016999,2]
[399809324,1766689852641,-557.39,0.00016999,2]
[399809325,1766689852651,-557.39,0.00016999,2]
[399809326,1766689852660,-557.39,0.00016999,2]
[399809327,1766689852671,-557.39,0.00016999,2]
[399809328,1766689852681,-557.39,0.00016999,2]
[399809329,1766689852691,-557.39,0.00016999,2]
[399809330,1766689852701,-557.39,0.00016999,2]
[399809331,1766689852711,-557.39,0.00016999,2]
[399809332,1766689852721,-557.39,0.00016999,2]
[399809333,1766689852732,-557.39,0.00016999,2]
[399809334,1766689852741,-557.39,0.00016999,2]
[399809335,1766689852751,-557.39,0.00016999,2]
[399809336,1766689852762,-557.39,0.00016999,2]
[399809337,1766689852772,-557.39,0.00016999,2]
[399809338,1766689852782,-557.39,0.00016999,2]
[399809339,1766689852792,-557.39,0.00016999,2]
[399809340,1766689852803,-557.58167877,0.00016999,2]
[399809341,1766689852814,-21715.1645861,0.00016999,2]
[399809342,1766689852824,-1664.65,0.00016999,2]